bitfinex/quotes_BTCUSD_20230118
["timestamp","ask_amount","ask_price","bid_price","bid_amount"]
[1674033428929,1.16202122,21237.0,21236.0,0.00802051]
[1674033429762,1.01202122,21237.0,21236.0,0.00802051]
[1674033430060,1.48289722,21237.0,21236.0,0.00802051]
[1674033430792,0.778223,21237.0,21236.0,0.11955051]
[1674033431062,0.307347,21237.0,21236.0,0.00802051]
[1674033440038,0.457347,21237.0,21236.0,0.00802051]
[1674033440822,1.20680346,21237.0,21236.0,0.00802051]
[1674033441325,1.31835364,21237.0,21236.0,0.00802051]
[1674033441587,1.51064918,21237.0,21236.0,0.00802051]
[1674033441864,1.51064918,21237.0,21236.0,0.00790294]
[1674033441865,1.99515805,21237.0,21236.0,0.00790294]
[1674033442130,1.99515805,21237.0,21235.0,0.00850912]
[1674033442131,0.37026591,21236.0,21235.0,0.00850912]
[1674033442470,3.66384874,21236.0,21235.0,0.00850912]
[1674033442738,3.68851965,21236.0,21235.0,0.00850912]
[1674033442987,3.08219578,21236.0,21235.0,0.00850912]
[1674033443276,1.84331032,21236.0,21235.0,0.00850912]
[1674033443523,1.76801032,21236.0,21235.0,0.00850912]
[1674033443764,1.71152313,21236.0,21235.0,0.00850912]
[1674033444014,1.59872434,21236.0,21235.0,0.00850912]
[1674033444778,0.65692834,21236.0,21235.0,0.00850912]
[1674033445020,0.54413091,21236.0,21235.0,0.00850912]
[1674033445265,0.65692834,21236.0,21235.0,0.00850912]
[1674033446025,0.65774109,21236.0,21235.0,0.00850912]
[1674033446278,0.54494366,21236.0,21235.0,0.00850912]
[1674033448541,0.11279743,21238.0,21235.0,1.3937502]
[1674033449086,0.28204716,21239.0,21235.0,1.3937502]
[1674033449338,0.44610695,21240.0,21236.0,0.3]
[1674033449339,0.50255789,21240.0,21236.0,0.3]
[1674033449596,0.50255789,21240.0,21236.0,1.43249195]
[1674033449597,0.00081275,21239.0,21236.0,1.43249195]
[1674033449852,0.50255789,21240.0,21237.0,0.20530662]
[1674033450112,0.33330816,21240.0,21237.0,0.39603257]
[1674033450369,0.22051073,21240.0,21238.0,0.3]
[1674033450624,0.22051073,21240.0,21239.0,0.470831]
[1674033450894,0.22051073,21240.0,21239.0,1.12759586]
[1674033451123,0.00096955,21241.0,21239.0,1.44842686]
[1674033451378,0.00081275,21241.0,21239.0,1.14842686]
[1674033451638,0.26881046,21241.0,21239.0,1.14842686]
[1674033451889,0.11279743,21242.0,21239.0,1.14842686]
[1674033453168,0.313956,21241.0,21239.0,1.14842686]
[1674033453416,0.339248,21240.0,21239.0,1.14842686]
[1674033453660,0.11279743,21242.0,21239.0,1.14842686]
[1674033454177,0.52784711,21243.0,21239.0,1.14842686]
[1674033454432,0.52784711,21243.0,21240.0,0.16941629]
[1674033454698,0.338097,21242.0,21241.0,0.470787]
[1674033454953,0.338097,21242.0,21240.0,0.64021229]
[1674033454954,0.33279975,21242.0,21240.0,0.64021229]
[1674033455206,0.320723,21241.0,21240.0,0.64021229]
[1674033455461,0.00081275,21242.0,21240.0,0.64021229]
[1674033456240,0.35859738,21243.0,21241.0,0.11110433]
[1674033456505,0.11375199,21244.0,21242.0,0.470765]
[1674033456763,0.00095456,21244.0,21242.0,0.470765]
[1674033457019,0.28204716,21245.0,21242.0,1.13225595]
[1674033457334,0.29035785,21246.0,21243.0,0.16186603]
[1674033457566,0.00831069,21246.0,21243.0,1.29405998]
[1674033457837,0.00831069,21246.0,21244.0,0.1764825]
[1674033458099,0.00831069,21246.0,21245.0,0.470698]
[1674033459689,0.00831069,21246.0,21245.0,0.471698]
[1674033459965,0.00831069,21246.0,21245.0,0.001]
[1674033460266,0.33156169,21246.0,21245.0,0.001]
[1674033460521,0.33237444,21246.0,21245.0,0.001]
[1674033461046,0.33156169,21246.0,21245.0,0.001]
[1674033462127,0.33156169,21246.0,21245.0,0.11253]
[1674033464292,0.00831069,21246.0,21245.0,0.11253]
[1674033464582,0.00831069,21246.0,21245.0,0.11242297]
[1674033465102,0.00831069,21246.0,21245.0,0.58312097]
[1674033467926,0.00831069,21246.0,21245.0,0.88312097]
[1674033468720,0.00831069,21246.0,21245.0,1.35381897]
[1674033468977,0.00831069,21246.0,21245.0,1.60926087]
[1674033470750,0.00831069,21246.0,21245.0,2.15475887]
[1674033470999,0.00831069,21246.0,21245.0,1.88587876]
[1674033472287,0.00831069,21246.0,21245.0,1.88596525]
[1674033473316,0.00831069,21246.0,21245.0,1.58596525]
[1674033474081,0.00831069,21246.0,21245.0,1.40552335]
[1674033474585,0.00831069,21246.0,21245.0,1.70552335]
[1674033475102,0.00831069,21246.0,21245.0,1.63052335]
[1674033476142,0.00831069,21246.0,21245.0,1.71432335]
[1674033477900,0.00831069,21246.0,21245.0,2.19152504]
[1674033478157,0.00831069,21246.0,21245.0,2.53993364]
[1674033478438,0.00831069,21246.0,21245.0,2.06273195]
[1674033479754,0.00831069,21246.0,21245.0,2.10773195]
[1674033480011,0.01231069,21246.0,21245.0,2.10773195]
[1674033484177,0.01231069,21246.0,21245.0,2.82027364]
[1674033485765,0.01231069,21246.0,21245.0,2.82028364]
[1674033493031,0.01231069,21246.0,21245.0,3.57157774]
[1674033493552,0.01231069,21246.0,21245.0,3.10648364]
[1674033494082,0.01231069,21246.0,21245.0,3.45907458]
[1674033494339,0.01231069,21246.0,21245.0,3.10648364]
[1674033494600,0.00831069,21248.0,21245.0,3.45907458]
[1674033494873,0.00831069,21248.0,21247.0,0.15]
[1674033495150,0.00831069,21248.0,21247.0,2.86240863]
[1674033495587,0.01794567,21250.0,21248.0,0.15]
[1674033495879,0.01794567,21250.0,21249.0,2.75324169]
[1674033496137,0.01794567,21250.0,21249.0,3.14816617]
[1674033498011,0.01794567,21250.0,21249.0,3.24116617]
[1674033498271,0.01794567,21250.0,21249.0,2.93136617]
[1674033499077,0.01794567,21250.0,21249.0,2.93145264]
[1674033499867,0.00294567,21250.0,21249.0,2.93145264]
[1674033501155,0.00294567,21250.0,21249.0,2.93002479]
[1674033503021,0.00294567,21250.0,21249.0,3.24003479]
[1674033503304,0.00294567,21250.0,21249.0,3.24002479]
[1674033505946,0.00294567,21250.0,21249.0,3.24001479]
[1674033506668,0.00294567,21250.0,21249.0,3.52127241]
[1674033506913,0.00294567,21250.0,21249.0,3.35237375]
[1674033507161,0.00294567,21250.0,21249.0,3.82647367]
[1674033507403,0.00294567,21250.0,21249.0,3.58625948]
[1674033507661,0.00294567,21250.0,21249.0,3.35236569]
[1674033508151,0.00294567,21250.0,21249.0,3.52112015]
[1674033508392,0.00294567,21250.0,21249.0,3.35236569]
[1674033508881,0.00294567,21250.0,21249.0,3.52112015]
[1674033509416,0.00304759,21252.0,21250.0,0.15]
[1674033509675,0.00304759,21252.0,21251.0,2.71637429]
[1674033509929,0.00304759,21252.0,21251.0,3.01637429]
[1674033514711,0.00304759,21252.0,21251.0,3.10837429]
[1674033516443,0.00304759,21252.0,21251.0,3.10410902]
[1674033516691,0.00304759,21252.0,21251.0,3.21222519]
[1674033516927,0.00304759,21252.0,21251.0,3.70718097]
[1674033517180,0.00304759,21252.0,21251.0,3.36261162]
[1674033517457,0.01032511,21254.0,21251.0,3.94715777]
[1674033517712,0.01032511,21254.0,21253.0,0.0749]
[1674033517967,0.01032511,21254.0,21253.0,2.58418569]
[1674033518214,0.01032511,21254.0,21253.0,2.88418569]
[1674033518710,0.01032511,21254.0,21253.0,2.89268569]
[1674033519168,0.01032511,21254.0,21253.0,2.98568569]
[1674033519428,0.01032511,21254.0,21253.0,3.19294747]
[1674033519955,0.01032511,21254.0,21253.0,3.08061017]
[1674033520225,0.01032511,21254.0,21253.0,2.93061017]
[1674033522854,0.01032511,21254.0,21253.0,2.85571017]
[1674033525448,0.01032511,21254.0,21253.0,2.37850848]
[1674033526998,0.01032511,21254.0,21253.0,2.49084578]
[1674033527260,0.01032511,21254.0,21253.0,2.56614578]
[1674033528094,0.01032511,21254.0,21253.0,2.45380848]
[1674033528344,0.01032511,21254.0,21253.0,2.56614578]
[1674033529407,0.01032511,21254.0,21253.0,2.45380848]
[1674033530493,0.01032511,21254.0,21253.0,2.56614578]
[1674033531060,0.01032511,21254.0,21253.0,2.70916589]
[1674033531317,0.01032511,21254.0,21253.0,2.82153707]
[1674033531822,0.01032511,21254.0,21253.0,2.70916589]
[1674033531827,0.01032511,21254.0,21253.0,2.821537]
[1674033532085,0.01032511,21254.0,21253.0,2.70916589]
[1674033532613,0.01032511,21254.0,21253.0,2.82155613]
[1674033532868,0.01032511,21254.0,21253.0,2.73470467]
[1674033533407,0.01032511,21254.0,21253.0,2.56619872]
[1674033535075,0.01032511,21254.0,21253.0,2.83047915]
[1674033535341,0.02429877,21254.0,21253.0,2.94305421]
[1674033537198,0.0218689,21254.0,21253.0,2.77454826]
[1674033537200,0.0218689,21254.0,21253.0,2.94317419]
[1674033537478,0.0218689,21254.0,21253.0,3.48699995]
[1674033537734,0.0218689,21254.0,21253.0,3.76827661]
[1674033537984,0.0218689,21254.0,21253.0,3.48699995]
[1674033538240,0.0218689,21254.0,21253.0,3.76827661]
[1674033538513,0.0218689,21254.0,21253.0,3.65564369]
[1674033538784,0.0218689,21254.0,21253.0,3.4870864]
[1674033539308,0.0218689,21254.0,21253.0,3.65573374]
[1674033539796,0.0218689,21254.0,21253.0,3.54339776]
[1674033539802,0.0218689,21254.0,21253.0,3.5329951]
[1674033540064,0.0218689,21254.0,21253.0,3.42037232]
[1674033540318,0.0218689,21254.0,21253.0,3.5329951]
[1674033540573,0.0218689,21254.0,21253.0,3.4204067]
[1674033540821,0.0218689,21254.0,21253.0,3.25171844]
[1674033541340,0.0218689,21254.0,21253.0,3.42041546]
[1674033541869,0.0218689,21254.0,21253.0,3.25171844]
[1674033542151,0.0218689,21254.0,21253.0,3.5329951]
[1674033542651,0.0218689,21254.0,21253.0,2.77451675]
[1674033542903,0.0168689,21254.0,21253.0,2.64313185]
[1674033543163,0.0168689,21254.0,21253.0,2.86797919]
[1674033543969,0.0168689,21254.0,21253.0,2.98049341]
[1674033544231,0.0168689,21254.0,21253.0,2.75564607]
[1674033544748,0.0168689,21254.0,21253.0,2.99090607]
[1674033545734,0.0168689,21254.0,21253.0,3.1868311]
[1674033546000,0.0168689,21254.0,21253.0,3.2617311]
[1674033546286,0.0168689,21254.0,21253.0,3.59924229]
[1674033547028,0.0168689,21254.0,21253.0,3.50624229]
[1674033547376,0.00289524,21254.0,21253.0,3.59824229]
[1674033547552,0.00289524,21254.0,21253.0,3.50624229]
[1674033547797,0.00289524,21254.0,21253.0,3.59824229]
[1674033549879,0.00289524,21254.0,21253.0,3.2607311]
[1674033550359,0.00289524,21254.0,21253.0,3.59824229]
[1674033551173,0.00190312,21254.0,21253.0,3.61432172]
[1674033551412,0.00190312,21254.0,21253.0,3.45670631]
[1674033551675,0.00190312,21254.0,21253.0,3.79426915]
[1674033551937,0.00190312,21254.0,21253.0,3.59829394]
[1674033552718,0.01032511,21255.0,21253.0,3.59829394]
[1674033552980,0.01032511,21255.0,21254.0,1.29668477]
[1674033553232,0.01032511,21255.0,21254.0,2.23768277]
[1674033554513,0.01032511,21255.0,21254.0,2.32968277]
[1674033554783,0.01032511,21255.0,21254.0,2.66724561]
[1674033555116,0.01032511,21255.0,21254.0,2.32968277]
[1674033555320,0.01032511,21255.0,21254.0,2.31100882]
[1674033555573,0.01032511,21255.0,21254.0,1.98358574]
[1674033556864,0.01032511,21255.0,21254.0,2.28358574]
[1674033557396,0.01032511,21255.0,21254.0,2.17114461]
[1674033557924,0.01032511,21255.0,21254.0,2.28358574]
[1674033558440,0.01032511,21255.0,21254.0,2.00225969]
[1674033558689,0.01032511,21255.0,21254.0,2.28358574]
[1674033559213,0.01032511,21255.0,21254.0,2.29375713]
[1674033559460,0.01032511,21255.0,21254.0,2.01243108]
[1674033559461,0.0092926,21255.0,21254.0,2.01243108]
[1674033559973,0.0092926,21255.0,21254.0,2.29391018]
[1674033561560,0.0092926,21255.0,21254.0,2.01243108]
[1674033561846,0.0092926,21255.0,21254.0,2.29387856]
[1674033562091,0.0092926,21255.0,21254.0,2.01243108]
[1674033562341,0.0092926,21255.0,21254.0,2.29389396]
[1674033562985,0.0092926,21255.0,21254.0,2.28385033]
[1674033563139,0.0092926,21255.0,21254.0,2.05864396]
[1674033563652,0.0092926,21255.0,21254.0,2.00239867]
[1674033563910,0.470342,21262.0,21254.0,2.00239867]
[1674033564170,0.00099782,21259.0,21256.0,0.11261353]
[1674033564438,0.0753,21260.0,21257.0,1.67391253]
[1674033564692,0.0753,21260.0,21258.0,0.3]
[1674033564945,0.0753,21262.0,21259.0,0.940778]
[1674033565205,0.0753,21262.0,21260.0,0.58565043]
[1674033565462,0.07626346,21263.0,21261.0,0.470344]
[1674033565709,0.07626346,21263.0,21262.0,0.3]
[1674033565969,0.41651,21263.0,21261.0,0.470344]
[1674033566222,0.41651,21263.0,21262.0,0.15263424]
[1674033566223,0.0753,21263.0,21262.0,0.15263424]
[1674033566479,0.396458,21263.0,21262.0,0.15263424]
[1674033566975,0.396458,21263.0,21262.0,0.15963424]
[1674033566976,0.404458,21263.0,21262.0,0.15963424]
[1674033567237,0.404458,21263.0,21262.0,0.45963424]
[1674033567505,0.404458,21263.0,21262.0,0.62995624]
[1674033567753,0.404458,21263.0,21262.0,0.63009968]
[1674033568012,0.404364,21263.0,21262.0,0.63009968]
[1674033568760,0.0833,21263.0,21262.0,1.10042168]
[1674033569287,0.393811,21263.0,21262.0,0.15977768]
[1674033569569,0.393811,21263.0,21262.0,0.00714344]
[1674033569776,0.393811,21263.0,21262.0,0.007]
[1674033571099,0.543811,21263.0,21262.0,0.007]
[1674033571619,0.468811,21263.0,21262.0,0.007]
[1674033571884,1.87989001,21263.0,21262.0,0.007]
[1674033572932,2.27441935,21263.0,21262.0,0.007]
[1674033573478,2.27458615,21263.0,21262.0,0.007]
[1674033575498,3.22022191,21263.0,21262.0,0.007]
[1674033575747,3.2202332,21263.0,21262.0,0.007]
[1674033576257,2.99476441,21263.0,21262.0,0.007]
[1674033577033,3.22022249,21263.0,21262.0,0.007]
[1674033577527,2.57581489,21263.0,21262.0,0.007]
[1674033577774,2.74490489,21263.0,21262.0,0.007]
[1674033578279,2.57581489,21263.0,21262.0,0.007]
[1674033579320,2.51944062,21263.0,21262.0,0.007]
[1674033579582,2.7448987,21263.0,21262.0,0.007]
[1674033580067,2.74490113,21263.0,21262.0,0.007]
[1674033580617,2.27460113,21263.0,21262.0,0.007]
[1674033581158,1.44717881,21263.0,21262.0,0.007]
[1674033581416,0.5063998,21263.0,21262.0,0.007]
[1674033581670,0.6563998,21263.0,21262.0,0.007]
[1674033581930,1.61625089,21263.0,21262.0,0.007]
[1674033583465,1.50352889,21263.0,21262.0,0.007]
[1674033583721,1.72898697,21263.0,21262.0,0.007]
[1674033584518,1.50352889,21263.0,21262.0,0.007]
[1674033585268,1.61626985,21263.0,21262.0,0.007]
[1674033585786,1.6170826,21263.0,21262.0,0.007]
[1674033586120,1.61626985,21263.0,21262.0,0.007]
[1674033586355,0.50641876,21263.0,21262.0,0.007]
[1674033587642,0.3936778,21263.0,21262.0,0.007]
[1674033589234,0.50641876,21263.0,21262.0,0.007]
[1674033589494,0.318511,21263.0,21262.0,0.007]
[1674033589747,0.318511,21263.0,21262.0,0.491769]
[1674033590028,0.008,21263.0,21262.0,0.491769]
[1674033590549,0.347555,21263.0,21262.0,0.491769]
[1674033591064,0.008,21263.0,21262.0,0.491769]
[1674033591318,0.008,21263.0,21262.0,0.962091]
[1674033592346,0.325917,21263.0,21262.0,0.962091]
[1674033592604,0.008,21263.0,21262.0,0.962091]
[1674033593125,0.32295,21263.0,21262.0,0.962091]
[1674033593640,0.32376275,21263.0,21262.0,0.962091]
[1674033593982,0.32376275,21263.0,21262.0,0.662091]
[1674033593983,0.008,21263.0,21262.0,0.662091]
[1674033594153,0.008,21263.0,21262.0,0.477322]
[1674033594433,0.0833,21263.0,21262.0,0.007]
[1674033594685,0.41581,21263.0,21262.0,0.007]
[1674033594941,0.41581,21263.0,21262.0,0.477322]
[1674033595238,0.0833,21263.0,21262.0,0.477322]
[1674033595495,0.412383,21263.0,21262.0,0.477322]
[1674033595750,0.0833,21263.0,21262.0,0.777322]
[1674033596017,0.0833,21263.0,21262.0,1.4794435]
[1674033597079,0.0833,21263.0,21262.0,0.5387995]
[1674033597347,0.406808,21263.0,21262.0,0.777322]
[1674033598167,0.0833,21263.0,21262.0,1.247644]
[1674033598415,0.008,21263.0,21262.0,1.247644]
[1674033598662,0.326597,21263.0,21262.0,1.247644]
[1674033598922,0.008,21263.0,21262.0,1.247644]
[1674033599207,0.008,21263.0,21262.0,1.4794407]
[1674033599466,0.008,21263.0,21262.0,2.0794407]
[1674033600213,0.008,21263.0,21262.0,1.7794407]
[1674033601002,0.008,21263.0,21262.0,2.0794407]
[1674033602300,0.008,21263.0,21262.0,2.07958414]
[1674033606860,0.008,21263.0,21262.0,1.60926214]
[1674033607110,0.336238,21263.0,21262.0,1.60926214]
[1674033607367,0.336238,21263.0,21262.0,2.07958414]
[1674033608131,0.008,21263.0,21262.0,2.07958414]
[1674033609234,0.008,21263.0,21262.0,2.31958414]
[1674033616753,0.22516674,21271.0,21263.0,0.158]
[1674033617018,0.28143418,21273.0,21270.0,0.23507]
[1674033617460,0.11257489,21273.0,21272.0,0.6]
[1674033617732,0.40364731,21275.0,21272.0,0.9085]
[1674033617733,0.11257489,21274.0,21272.0,0.9085]
[1674033617991,0.11257489,21274.0,21272.0,1.070089]
[1674033617992,0.1106,21274.0,21272.0,1.070089]
[1674033618256,0.53751582,21273.0,21272.0,0.6]
[1674033618513,0.53751582,21273.0,21272.0,0.602]
[1674033618514,0.97373868,21273.0,21272.0,0.602]
[1674033618801,0.95280868,21273.0,21272.0,0.6]
[1674033619069,0.95280868,21273.0,21272.0,0.622]
[1674033619070,0.47625343,21273.0,21272.0,0.622]
[1674033619337,0.47625343,21273.0,21272.0,0.6]
[1674033619338,0.82135643,21273.0,21272.0,0.6]
[1674033619608,0.82554368,21273.0,21272.0,0.622]
[1674033619896,0.82635643,21273.0,21272.0,0.622]
[1674033620457,0.82554368,21273.0,21272.0,0.622]
[1674033620724,0.82554368,21273.0,21272.0,0.62214337]
[1674033620986,0.82554368,21273.0,21272.0,0.622]
[1674033621469,0.82554368,21273.0,21272.0,0.862]
[1674033621476,0.460503,21273.0,21272.0,0.862]
[1674033621742,0.005,21273.0,21272.0,1.162]
[1674033622253,0.005,21273.0,21272.0,1.332101]
[1674033622510,0.005,21273.0,21272.0,0.862]
[1674033622771,0.316868,21273.0,21272.0,0.862]
[1674033623022,0.70385756,21273.0,21272.0,0.862]
[1674033624079,0.427468,21273.0,21272.0,0.862]
[1674033624317,0.427468,21273.0,21272.0,1.632101]
[1674033624848,0.427468,21273.0,21272.0,2.102202]
[1674033624849,0.005,21273.0,21272.0,2.102202]
[1674033626383,0.005,21273.0,21272.0,2.57940369]
[1674033626640,0.005,21273.0,21272.0,2.79990369]
[1674033627467,0.005,21273.0,21272.0,3.40444001]
[1674033627759,0.005,21273.0,21272.0,3.16939001]
[1674033628294,0.00962128,21275.0,21273.0,0.15]
[1674033628560,0.00962128,21275.0,21274.0,2.10857269]
[1674033628823,0.00962128,21275.0,21274.0,1.820771]
[1674033629118,0.00962128,21275.0,21274.0,2.290828]
[1674033629667,0.00962128,21275.0,21274.0,2.76802969]
[1674033629932,0.00962128,21275.0,21274.0,3.001428]
[1674033630196,0.01362128,21275.0,21274.0,2.943828]
[1674033630481,0.01362128,21275.0,21274.0,2.473771]
[1674033631536,0.01362128,21275.0,21274.0,2.063171]
[1674033633356,0.01362128,21275.0,21274.0,2.363171]
[1674033633603,0.03364028,21275.0,21274.0,2.363171]
[1674033633853,0.14424028,21275.0,21274.0,0.523057]
[1674033634119,0.47460528,21275.0,21274.0,0.053]
[1674033634657,0.47541803,21275.0,21274.0,0.053]
[1674033634892,0.47060528,21275.0,21273.0,0.47793833]
[1674033635162,0.3125,21274.0,21273.0,0.47793833]
[1674033635711,0.14424028,21275.0,21273.0,0.47793833]
[1674033636731,0.14024028,21275.0,21273.0,0.47793833]
[1674033637014,0.004,21274.0,21273.0,0.99601733]
[1674033637271,0.14024028,21275.0,21273.0,1.84801733]
[1674033637552,0.14024028,21275.0,21274.0,0.3]
[1674033637812,0.14424028,21275.0,21274.0,0.770057]
[1674033638296,0.14024028,21275.0,21274.0,0.770057]
[1674033638816,0.14105303,21275.0,21274.0,0.470057]
[1674033639075,0.14024028,21275.0,21274.0,0.470057]
[1674033639350,0.02964028,21275.0,21274.0,1.240114]
[1674033639875,0.03364028,21275.0,21274.0,1.288114]
[1674033640650,0.03364028,21275.0,21274.0,1.58958331]
[1674033641048,0.03364028,21275.0,21274.0,2.09655905]
[1674033641207,0.12555697,21282.0,21276.0,0.02802227]
[1674033641485,0.12555697,21282.0,21277.0,1.60064895]
[1674033641486,0.4629398,21282.0,21277.0,1.60064895]
[1674033641745,0.4629398,21282.0,21278.0,1.09072595]
[1674033642013,0.4629398,21282.0,21279.0,0.19072595]
[1674033642270,0.4629398,21282.0,21279.0,1.13061395]
[1674033642271,0.319153,21281.0,21279.0,1.13061395]
[1674033642549,0.4629398,21282.0,21280.0,0.3]
[1674033642805,0.4629398,21282.0,21279.0,0.469942]
[1674033643063,0.297219,21281.0,21279.0,0.469942]
[1674033643322,0.322484,21280.0,21279.0,0.939888]
[1674033643589,0.337252,21280.0,21279.0,1.033888]
[1674033643856,0.4629398,21282.0,21279.0,0.939888]
[1674033644383,0.325014,21281.0,21279.0,1.033888]
[1674033644645,0.4629398,21282.0,21280.0,0.3]
[1674033644932,0.4629398,21282.0,21280.0,1.239832]
[1674033645218,0.336978,21281.0,21280.0,1.539832]
[1674033645770,0.4629398,21282.0,21280.0,1.539832]
[1674033646032,0.323271,21281.0,21280.0,1.539832]
[1674033646868,0.4629398,21282.0,21280.0,1.605832]
[1674033647390,0.326597,21281.0,21280.0,1.605832]
[1674033647801,0.326597,21281.0,21280.0,1.135909]
[1674033648066,0.326597,21281.0,21280.0,1.069909]
[1674033648587,0.32740975,21281.0,21278.0,0.469968]
[1674033648860,0.324371,21280.0,21278.0,0.469968]
[1674033649120,0.320206,21279.0,21278.0,0.469968]
[1674033649383,0.2206,21279.0,21277.0,0.6]
[1674033649639,0.534746,21278.0,21277.0,0.6]
[1674033649892,0.424746,21278.0,21277.0,0.6]
[1674033650954,0.424746,21278.0,21277.0,0.693]
[1674033652775,0.424746,21278.0,21277.0,0.093]
[1674033653004,0.424746,21278.0,21277.0,0.333]
[1674033653823,0.314646,21278.0,21277.0,0.333]
[1674033654120,0.87939691,21280.0,21277.0,0.333]
[1674033654593,0.320272,21279.0,21278.0,0.6]
[1674033655112,0.32108475,21279.0,21278.0,0.6]
[1674033655419,0.320272,21279.0,21278.0,0.6]
[1674033656135,0.32108475,21279.0,21278.0,0.6]
[1674033656397,0.320272,21279.0,21278.0,0.6]
[1674033656930,0.320272,21279.0,21278.0,0.693]
[1674033656931,0.429872,21279.0,21278.0,0.693]
[1674033657193,0.43068475,21279.0,21278.0,0.093]
[1674033657445,0.429872,21279.0,21278.0,0.093]
[1674033658238,0.429872,21279.0,21278.0,0.693]
[1674033658476,0.320272,21279.0,21278.0,0.693]
[1674033661695,0.32108475,21279.0,21278.0,0.693]
[1674033661953,0.320272,21279.0,21278.0,0.693]
[1674033662210,0.320272,21279.0,21278.0,1.632936]
[1674033662509,0.40945691,21280.0,21278.0,1.632936]
[1674033662781,0.1106,21280.0,21279.0,0.3]
[1674033663086,0.1104,21281.0,21279.0,0.3]
[1674033663554,0.307537,21280.0,21279.0,0.3]
[1674033663813,0.307537,21280.0,21278.0,1.539936]
[1674033664084,0.1104,21281.0,21278.0,1.539936]
[1674033664885,0.1104,21281.0,21278.0,1.632936]
[1674033665138,0.1104,21281.0,21279.0,0.3]
[1674033665403,0.1104,21281.0,21279.0,1.239878]
[1674033665658,0.1104,21281.0,21279.0,1.539878]
[1674033665937,0.322076,21280.0,21279.0,1.539878]
[1674033666177,0.322076,21280.0,21279.0,1.53979551]
[1674033666439,0.327981,21280.0,21279.0,1.54144354]
[1674033666697,0.1104,21281.0,21279.0,1.63544354]
[1674033667039,0.1104,21281.0,21279.0,1.54144354]
[1674033667220,0.01495623,21282.0,21280.0,0.3]
[1674033667741,0.01495623,21282.0,21280.0,0.769915]
[1674033668262,0.328922,21281.0,21280.0,0.769915]
[1674033668519,0.01495623,21282.0,21280.0,1.239839]
[1674033669018,0.01495623,21282.0,21281.0,0.6]
[1674033670576,0.01495623,21282.0,21281.0,1.539804]
[1674033670836,0.01495623,21282.0,21281.0,1.839804]
[1674033671090,0.01495623,21282.0,21281.0,1.539804]
[1674033671340,0.01495623,21282.0,21281.0,1.369902]
[1674033672156,0.01495623,21282.0,21281.0,1.839804]
[1674033672908,0.01495623,21282.0,21281.0,1.369902]
[1674033673169,0.01495623,21282.0,21281.0,1.069902]
[1674033673456,0.01495623,21282.0,21281.0,0.6]
[1674033673926,0.01495623,21282.0,21281.0,0.3921969]
[1674033674725,0.01495623,21282.0,21281.0,0.8620989]
[1674033674726,0.35309623,21282.0,21281.0,0.8620989]
[1674033674971,0.01495623,21282.0,21281.0,1.3320009]
[1674033675224,0.01495623,21282.0,21281.0,0.8620989]
[1674033676012,0.01495623,21282.0,21281.0,1.3320009]
[1674033676263,0.01495623,21282.0,21281.0,1.6320009]
[1674033677035,0.01495623,21282.0,21281.0,0.8620989]
[1674033677813,0.31189423,21282.0,21281.0,0.3921969]
[1674033678330,0.11189423,21282.0,21281.0,0.3921969]
[1674033679361,0.11270698,21282.0,21279.0,0.469929]
[1674033679623,0.322898,21281.0,21278.0,0.8621479]
[1674033679946,0.313029,21280.0,21278.0,0.8621479]
[1674033680152,0.82065283,21282.0,21278.0,0.8621479]
[1674033680153,0.330953,21279.0,21278.0,0.8621479]
[1674033680407,0.330953,21279.0,21278.0,0.3921969]
[1674033681181,0.619905,21281.0,21278.0,0.4851969]
[1674033681462,0.74496108,21282.0,21278.0,0.4851969]
[1674033681723,0.544976,21283.0,21278.0,0.4851969]
[1674033681724,0.544976,21283.0,21281.0,0.3921969]
[1674033681978,0.32268599,21284.0,21281.0,0.58292285]
[1674033682239,0.30121,21283.0,21281.0,0.58292285]
[1674033682544,0.318264,21282.0,21281.0,0.3921969]
[1674033682770,0.318264,21282.0,21280.0,0.93983]
[1674033683014,0.58526088,21284.0,21281.0,0.3921969]
[1674033683278,0.323772,21283.0,21281.0,0.3921969]
[1674033683540,0.323731,21282.0,21281.0,0.3921969]
[1674033687504,0.58927086,21282.0,21281.0,0.3921969]
[1674033687759,1.24682575,21282.0,21281.0,0.3921969]
[1674033688027,1.13425086,21282.0,21281.0,0.3921969]
[1674033689070,1.71670575,21282.0,21281.0,0.3921969]
[1674033689577,1.60413086,21282.0,21281.0,0.3921969]
[1674033690354,1.72823607,21282.0,21281.0,0.3921969]
[1674033691990,1.72823607,21282.0,21277.0,0.6321969]
[1674033691991,2.79953084,21282.0,21277.0,0.6321969]
[1674033692247,0.0751,21280.0,21277.0,0.6321969]
[1674033692501,0.776952,21279.0,21277.0,0.6321969]
[1674033692758,0.328969,21278.0,21277.0,0.6321969]
[1674033693219,0.328969,21278.0,21277.0,0.7251969]
[1674033693498,0.32978175,21278.0,21277.0,0.24]
[1674033693755,0.79974975,21278.0,21277.0,0.24]
[1674033694528,0.79974975,21278.0,21277.0,0.326]
[1674033694785,1.26971775,21278.0,21277.0,0.24]
[1674033695588,0.32978175,21278.0,21277.0,0.24]
[1674033695870,0.32978175,21278.0,21277.0,0.247]
[1674033695871,0.33678175,21278.0,21277.0,0.247]
[1674033696130,1.27671775,21278.0,21277.0,0.247]
[1674033696652,1.27671775,21278.0,21277.0,0.6391969]
[1674033696653,1.275905,21278.0,21277.0,0.6391969]
[1674033696910,0.805937,21278.0,21277.0,0.6391969]
[1674033697702,1.275905,21278.0,21277.0,0.6391969]
[1674033698541,1.500805,21278.0,21277.0,0.247]
[1674033699082,1.350805,21278.0,21277.0,0.247]
[1674033699343,1.500805,21278.0,21277.0,0.247]
[1674033699932,1.350805,21278.0,21277.0,0.2469061]
[1674033700203,1.35161775,21278.0,21277.0,0.2469061]
[1674033702077,1.50161775,21278.0,21277.0,0.2469061]
[1674033702614,2.90883829,21278.0,21277.0,0.2469061]
[1674033702878,2.98393829,21278.0,21277.0,0.2469061]
[1674033703135,2.8711502,21278.0,21277.0,0.2469061]
[1674033703687,2.7960502,21278.0,21277.0,0.2469061]
[1674033703973,2.90183829,21278.0,21277.0,0.2399061]
[1674033704230,2.47030915,21278.0,21277.0,0.2399061]
[1674033704504,2.69547589,21278.0,21277.0,0.2399061]
[1674033704759,2.55497064,21278.0,21277.0,0.2409061]
[1674033705043,2.78013738,21278.0,21277.0,0.2409061]